bitfinex/quotes_SOLUSD_20250611
["timestamp","ask_amount","ask_price","bid_price","bid_amount"]
[1749629917035,10.16885993,166.15,166.12,8.33333333]
[1749629917532,10.16885993,166.13,166.12,8.33333333]
[1749629918332,6.2386,166.18,166.12,8.33333333]
[1749629918632,10.16885993,166.13,166.12,8.33333333]
[1749629918834,6.2386,166.18,166.12,8.33333333]
[1749629919035,10.16885993,166.13,166.12,8.33333333]
[1749629921045,6.2386,166.18,166.12,8.33333333]
[1749629921218,10.16885993,166.14,166.12,8.33333333]
[1749629924326,10.16885993,166.16,166.12,8.33333333]
[1749629924839,10.16885993,166.15,166.12,8.33333333]
[1749629925227,26.0,166.19,166.12,8.33333333]
[1749629925441,10.16885993,166.15,166.12,8.33333333]
[1749629926538,10.16885993,166.14,166.12,8.33333333]
[1749629927043,10.16885993,166.15,166.12,8.33333333]
[1749629928338,10.16885993,166.14,166.12,8.33333333]
[1749629929230,5.38,166.17,166.12,8.33333333]
[1749629929433,10.16885993,166.15,166.12,8.33333333]
[1749629930158,5.38,166.17,166.12,8.33333333]
[1749629930159,10.16885993,166.14,166.12,8.33333333]
[1749629930642,10.16885993,166.15,166.12,8.33333333]
[1749629931959,5.38,166.17,166.12,8.33333333]
[1749629932135,10.16885993,166.15,166.12,8.33333333]
[1749629932650,5.38,166.17,166.12,8.33333333]
[1749629932856,10.16885993,166.16,166.12,8.33333333]
[1749629936461,5.38,166.17,166.12,8.33333333]
[1749629936633,10.16885993,166.13,166.12,8.33333333]
[1749629937162,5.38,166.17,166.12,8.33333333]
[1749629937334,10.16885993,166.13,166.12,8.33333333]
[1749629937755,26.0,166.16,166.12,8.33333333]
[1749629937926,10.16885993,166.13,166.12,8.33333333]
[1749629939163,26.0,166.16,166.12,8.33333333]
[1749629939534,10.16885993,166.13,166.12,8.33333333]
[1749629940542,36.16885993,166.16,166.12,8.33333333]
[1749629940742,42.33175993,166.16,166.12,8.33333333]
[1749629940931,10.16885993,166.13,166.12,8.33333333]
[1749629941759,42.33175993,166.16,166.12,8.33333333]
[1749629941933,10.16885993,166.13,166.12,8.33333333]
[1749629942139,36.16885993,166.13,166.12,8.33333333]
[1749629943831,10.16885993,166.13,166.12,8.33333333]
[1749629944859,10.16885993,166.15,166.12,8.33333333]
[1749629945758,10.16885993,166.13,166.12,8.33333333]
[1749629946537,26.0,166.13,166.12,8.33333333]
[1749629946851,36.16885993,166.13,166.12,8.33333333]
[1749629949189,26.0,166.13,166.12,8.33333333]
[1749629949456,36.16885993,166.13,166.12,8.33333333]
[1749629949757,26.0,166.1,166.06,8.33333333]
[1749629949945,51.1,166.1,166.06,8.33333333]
[1749629950148,10.16885993,166.07,166.06,8.33333333]
[1749629950747,36.16885993,166.07,166.06,8.33333333]
[1749629950936,36.16885993,166.07,165.94,4.78032192]
[1749629950937,68.87905993,166.07,165.94,10.16885993]
[1749629951147,5.38,166.06,165.96,10.16885993]
[1749629951440,10.16885993,166.01,165.96,10.16885993]
[1749629951634,10.16885993,166.02,165.97,10.16885993]
[1749629951863,10.16885993,166.02,165.95,18.64964886]
[1749629952044,5.38,166.06,165.95,18.64964886]
[1749629952461,10.16885993,166.03,165.96,6.02554832]
[1749629952660,5.38,166.06,165.96,6.02554832]
[1749629952661,5.38,166.06,165.98,10.16885993]
[1749629952874,10.16885993,166.03,165.99,1.5481]
[1749629953158,10.16885993,166.03,165.99,20.33882792]
[1749629953467,10.16885993,166.03,165.99,1.5481]
[1749629954267,10.16885993,166.04,166.0,18.64964886]
[1749629954456,10.16885993,166.03,166.0,18.64964886]
[1749629954768,5.38,166.06,166.0,34.84257132]
[1749629954969,5.38,166.06,166.02,10.16885993]
[1749629956161,5.38,166.06,166.03,10.16885993]
[1749629956356,6.54468012,166.15,166.04,10.16885993]
[1749629956357,10.16885993,166.09,166.04,10.16885993]
[1749629956556,10.16885993,166.1,166.06,18.64964886]
[1749629956766,7.7721,166.15,166.06,28.81850879]
[1749629956767,10.16885993,166.11,166.06,28.81850879]
[1749629957271,5.7,166.13,166.06,18.64964886]
[1749629957479,10.16885993,166.09,166.06,18.64964886]
[1749629957782,10.16885993,166.1,166.06,18.64964886]
[1749629958658,5.7,166.13,166.06,18.64964886]
[1749629958844,10.16885993,166.09,166.06,18.64964886]
[1749629959944,5.7,166.13,166.06,18.64964886]
[1749629959945,10.16885993,166.1,166.06,18.64964886]
[1749629960150,5.7,166.13,166.06,18.64964886]
[1749629960570,10.16885993,166.1,166.06,28.81850879]
[1749629961270,10.16885993,166.09,166.05,18.64964886]
[1749629961482,5.7,166.13,166.05,18.64964886]
[1749629961789,10.16885993,166.09,166.05,18.64964886]
[1749629962200,10.16885993,166.1,166.05,28.81850879]
[1749629962697,26.0,166.12,166.07,10.16885993]
[1749629962996,36.16885993,166.12,166.07,10.16885993]
[1749629963188,36.16885993,166.12,166.04,24.67211702]
[1749629963385,36.16885993,166.12,166.07,10.16885993]
[1749629963888,26.0,166.12,166.08,10.16885993]
[1749629964483,5.7,166.13,166.1,18.64964886]
[1749629965091,15.86885993,166.13,166.08,18.64964886]
[1749629965296,5.7,166.13,166.08,28.81850879]
[1749629965591,15.86885993,166.13,166.08,18.64964886]
[1749629965796,15.86885993,166.13,166.08,28.81850879]
[1749629966575,15.86885993,166.13,166.08,18.64964886]
[1749629966897,15.86885993,166.13,166.08,28.81850879]
[1749629968483,5.7,166.13,166.08,28.81850879]
[1749629968888,15.86885993,166.13,166.08,28.81850879]
[1749629969196,5.7,166.13,166.08,28.81850879]
[1749629969486,15.86885993,166.13,166.09,10.16885993]
[1749629969697,15.86885993,166.13,166.08,28.81850879]
[1749629970064,26.0,166.1,166.02,1.5142]
[1749629970268,10.16885993,166.04,166.02,1.5142]
[1749629970484,26.0,166.1,166.02,1.5142]
[1749629970793,10.16885993,166.04,166.02,1.5142]
[1749629971177,10.16885993,166.05,166.01,18.64964886]
[1749629971768,26.0,166.1,166.01,28.81850879]
[1749629971984,10.16885993,166.06,166.01,28.81850879]
[1749629972186,10.16885993,166.05,165.98,1.6566]
[1749629972375,10.16885993,166.04,165.99,28.81850879]
[1749629972589,10.16885993,166.08,165.99,28.81850879]
[1749629972773,10.16885993,166.05,165.99,28.81850879]
[1749629972964,10.16885993,166.05,165.99,18.64964886]
[1749629973171,10.16885993,166.04,165.99,18.64964886]
[1749629973501,10.16885993,166.04,165.99,28.81850879]
[1749629974477,10.16885993,166.03,165.99,18.64964886]
[1749629975172,26.0,166.06,165.99,18.64964886]
[1749629975376,10.16885993,166.03,165.99,18.64964886]
[1749629975679,10.16885993,166.04,165.99,28.81850879]
[1749629975870,10.16885993,166.04,165.99,18.64964886]
[1749629976076,10.16885993,166.04,165.99,28.81850879]
[1749629977288,10.16885993,166.03,165.99,18.64964886]
[1749629977793,10.16885993,166.02,165.99,18.64964886]
[1749629978495,10.16885993,166.02,165.98,1.6566]
[1749629978900,10.16885993,166.01,165.97,18.64964886]
[1749629979085,10.16885993,166.0,165.96,18.64964886]
[1749629979472,6.1,166.03,165.96,18.64964886]
[1749629979801,10.16885993,166.01,165.96,10.16885993]
[1749629980102,6.1,166.03,165.96,10.16885993]
[1749629980290,10.16885993,166.01,165.95,18.64964886]
[1749629980801,10.16885993,166.01,165.96,10.16885993]
[1749629981484,10.16885993,166.0,165.95,18.64964886]
[1749629981672,10.16885993,165.99,165.95,18.64964886]
[1749629981876,6.1,166.03,165.94,1.6306]
[1749629982072,10.16885993,165.98,165.94,1.6306]
[1749629982299,26.0,166.0,165.89,15.47808863]
[1749629982494,10.16885993,165.98,165.93,10.16885993]
[1749629982797,6.1,166.03,165.95,10.16885993]
[1749629983102,10.16885993,165.98,165.93,26.0]
[1749629983284,6.1,166.03,165.94,18.64964886]
[1749629983793,10.16885993,165.99,165.94,28.81850879]
[1749629983995,6.1,166.03,165.94,28.81850879]
[1749629984177,10.16885993,165.99,165.94,28.81850879]
[1749629984375,10.16885993,165.99,165.94,18.64964886]
[1749629984885,10.16885993,165.99,165.94,28.81850879]
[1749629985396,10.16885993,166.0,165.96,18.64964886]
[1749629985801,10.16885993,165.99,165.94,28.81850879]
[1749629985994,10.16885993,165.98,165.94,18.64964886]
[1749629986500,10.16885993,165.99,165.94,28.81850879]
[1749629986800,36.16885993,166.0,165.96,18.64964886]
[1749629986997,26.0,166.0,165.96,18.64964886]
[1749629987200,10.16885993,166.0,165.96,18.64964886]
[1749629987392,10.16885993,165.99,165.93,18.64964886]
[1749629987703,10.16885993,165.99,165.94,10.16885993]
[1749629987905,10.16885993,165.99,165.96,18.64964886]
[1749629988400,32.1,166.03,165.96,18.64964886]
[1749629988700,10.16885993,166.0,165.96,18.64964886]
[1749629989079,10.16885993,166.0,165.94,10.16885993]
[1749629989697,10.16885993,166.0,165.96,18.64964886]
[1749629989905,10.16885993,165.97,165.9,28.81850879]
[1749629990087,10.16885993,165.96,165.92,18.64964886]
[1749629990279,26.0,166.0,165.92,18.64964886]
[1749629990481,10.16885993,165.96,165.92,18.64964886]
[1749629990706,10.16885993,165.96,165.9,18.64964886]
[1749629990898,10.16885993,165.96,165.92,18.64964886]
[1749629990899,14.89040007,165.96,165.92,18.64964886]
[1749629991204,10.16885993,165.95,165.91,18.64964886]
[1749629991903,6.2357,165.99,165.91,18.64964886]
[1749629992102,10.16885993,165.93,165.9,18.64964886]
[1749629994224,4.9002264,165.96,165.9,18.64964886]
[1749629994403,10.16885993,165.93,165.9,18.64964886]
[1749629994987,4.8199972,165.96,165.9,18.64964886]
[1749629995190,10.16885993,165.93,165.9,18.64964886]
[1749629995392,7.784,165.99,165.9,18.64964886]
[1749629995608,10.16885993,165.93,165.9,18.64964886]
[1749629995992,7.784,165.99,165.82,1.5654]
[1749629995993,26.0,165.97,165.82,1.5654]
[1749629996195,10.16885993,165.89,165.86,18.64964886]
[1749629996413,10.16885993,165.9,165.86,18.64964886]
[1749629996788,10.16885993,165.89,165.83,26.0]
[1749629996988,10.16885993,165.89,165.84,28.81850879]
[1749629997190,10.16885993,165.89,165.86,18.64964886]
[1749629997495,10.16885993,165.9,165.86,18.64964886]
[1749629997709,26.0,165.96,165.86,18.64964886]
[1749629997911,10.16885993,165.91,165.86,10.16885993]
[1749629998319,10.16885993,165.9,165.84,18.64964886]
[1749629998528,10.16885993,165.9,165.86,10.16885993]
[1749629999119,10.16885993,165.9,165.84,18.64964886]
[1749629999419,26.0,165.93,165.86,10.16885993]
[1749629999623,10.16885993,165.9,165.86,10.16885993]
[1749629999805,26.0,165.93,165.86,10.16885993]
[1749630000009,10.16885993,165.91,165.86,10.16885993]
[1749630000323,10.16885993,165.91,165.87,18.64964886]
[1749630000816,26.0,165.93,165.85,18.64964886]
[1749630001014,10.16885993,165.91,165.87,18.64964886]
[1749630001412,3.05003215,165.98,165.87,18.64964886]
[1749630001612,7.8589,166.0,165.87,18.64964886]
[1749630001613,10.16885993,165.95,165.91,18.64964886]
[1749630001997,10.16885993,165.95,165.88,18.64964886]
[1749630002201,26.0,165.97,165.91,28.81850879]
[1749630002415,10.16885993,165.96,165.91,28.81850879]
[1749630002612,10.16885993,165.97,165.91,18.64964886]
[1749630002826,10.16885993,165.97,165.9,1.6208]
[1749630002827,10.16885993,165.97,165.93,18.64964886]
[1749630003005,10.16885993,165.96,165.93,18.64964886]
[1749630003407,30.75946106,165.99,165.93,18.64964886]
[1749630003723,26.0,165.99,165.93,18.64964886]
[1749630003915,10.16885993,165.97,165.93,18.64964886]
[1749630004422,10.16885993,165.99,165.95,18.64964886]
[1749630004838,10.16885993,166.0,165.95,10.16885993]
[1749630005130,10.16885993,166.0,165.92,26.0]
[1749630005131,10.16885993,166.05,165.99,10.16885993]
[1749630005319,10.16885993,166.05,165.97,20.22144886]
[1749630005320,10.16885993,166.03,165.97,20.22144886]
[1749630005500,26.0,166.07,166.0,10.16885993]
[1749630005707,10.16885993,166.04,165.99,10.16885993]
[1749630006009,10.16885993,166.04,165.97,20.22144886]
[1749630006214,1.5022,166.08,165.99,10.16885993]
[1749630006525,10.16885993,166.05,166.01,18.64964886]
[1749630007130,10.16885993,166.04,166.01,18.64964886]
[1749630007330,10.16885993,166.08,165.99,10.16885993]
[1749630007511,10.16885993,166.04,166.0,18.64964886]
[1749630007715,32.26,166.09,166.0,28.81850879]
[1749630008112,10.16885993,166.05,166.0,28.81850879]
[1749630008313,32.26,166.09,165.98,18.64964886]
[1749630008523,32.26,166.09,166.0,10.16885993]
[1749630008833,10.16885993,166.05,166.0,10.16885993]
[1749630009911,10.16885993,166.05,165.98,18.64964886]
[1749630010225,10.16885993,166.05,166.0,10.16885993]
[1749630010619,32.26,166.09,166.01,10.16885993]
[1749630010806,10.16885993,166.06,166.01,10.16885993]
[1749630011006,10.16885993,166.05,166.0,10.16885993]
[1749630011836,10.16885993,166.05,165.98,18.64964886]
[1749630012015,10.16885993,166.05,166.0,10.16885993]
[1749630013037,10.16885993,166.06,166.01,10.16885993]
[1749630013210,10.16885993,166.05,166.0,10.16885993]
[1749630013735,10.16885993,166.04,166.0,18.64964886]
[1749630013915,10.16885993,166.03,166.0,18.64964886]
[1749630015214,10.16885993,166.04,166.0,18.64964886]
[1749630015413,10.16885993,166.04,165.99,10.16885993]
[1749630015414,32.26,166.09,166.01,10.16885993]
[1749630015615,32.26,166.09,166.03,18.64964886]
[1749630015827,10.16885993,166.06,166.03,18.64964886]
[1749630016038,10.16885993,166.06,166.02,18.64964886]
[1749630016631,10.16885993,166.05,166.0,10.16885993]
[1749630016928,10.16885993,166.05,166.01,18.64964886]
[1749630017530,32.26,166.09,166.01,18.64964886]
[1749630017723,10.16885993,166.05,166.01,18.64964886]
[1749630017920,32.26,166.09,166.01,18.64964886]
[1749630018117,10.16885993,166.05,166.01,18.64964886]
[1749630019317,32.26,166.09,166.01,18.64964886]
[1749630019641,10.16885993,166.05,166.01,18.64964886]
[1749630021334,32.26,166.09,166.01,18.64964886]
[1749630021513,10.16885993,166.05,166.01,18.64964886]
[1749630022836,36.16885993,166.06,166.01,10.16885993]
[1749630023029,10.16885993,166.06,165.98,18.64964886]
[1749630023227,10.16885993,166.05,166.01,18.64964886]
[1749630024132,10.16885993,166.02,165.98,18.64964886]
[1749630024714,10.16885993,166.03,165.98,28.81850879]
[1749630024914,26.0,166.05,166.0,18.64964886]
[1749630025115,10.16885993,166.04,166.0,18.64964886]
[1749630025316,10.16885993,166.05,166.0,28.81850879]
[1749630025520,10.16885993,166.04,166.0,18.64964886]
[1749630025734,10.16885993,166.03,166.0,18.64964886]
[1749630026627,10.16885993,166.04,166.0,18.64964886]
[1749630026828,6.26,166.09,166.01,10.16885993]
[1749630026829,10.16885993,166.06,166.01,10.16885993]
[1749630027136,32.26,166.09,166.03,18.64964886]
[1749630027327,10.16885993,166.08,166.03,10.16885993]
[1749630027529,10.16885993,166.11,166.07,18.64964886]
[1749630027722,10.16885993,166.14,166.09,18.64964886]
[1749630027919,10.16885993,166.14,166.08,10.16885993]
[1749630027920,10.16885993,166.15,166.11,18.64964886]
[1749630028126,10.16885993,166.16,166.11,28.81850879]
[1749630028325,10.16885993,166.16,166.06,26.0]
[1749630028326,6.24,166.17,166.13,10.16885993]
[1749630028822,173.8268,166.23,166.14,10.16885993]
[1749630029143,10.16885993,166.18,166.13,10.16885993]
[1749630031515,26.0,166.2,166.13,10.16885993]
[1749630031713,10.16885993,166.19,166.15,18.64964886]
[1749630031943,36.16885993,166.2,166.15,18.64964886]
[1749630033214,36.16885993,166.2,166.15,10.16885993]
[1749630033633,10.16885993,166.19,166.15,18.64964886]
[1749630033832,26.0,166.22,166.15,18.64964886]
[1749630034037,10.16885993,166.19,166.13,18.64964886]
[1749630034250,10.16885993,166.18,166.15,18.64964886]
[1749630034440,10.16885993,166.18,166.13,28.81850879]
[1749630035343,10.16885993,166.19,166.15,18.64964886]
[1749630036248,10.16885993,166.18,166.13,28.81850879]
[1749630036444,10.16885993,166.17,166.13,18.64964886]
[1749630036652,26.0,166.21,166.13,28.81850879]
[1749630036953,10.16885993,166.18,166.13,28.81850879]
[1749630038124,10.16885993,166.17,166.13,18.64964886]
[1749630038746,10.16885993,166.15,166.08,1.5033]
[1749630038945,6.3468,166.23,166.08,1.5033]
[1749630038946,10.16885993,166.14,166.09,28.81850879]
[1749630039827,10.16885993,166.12,166.08,1.5033]
[1749630040025,10.16885993,166.13,166.08,11.67215993]
[1749630040635,26.36,166.21,166.09,10.16885993]
[1749630040826,10.16885993,166.15,166.1,10.16885993]
[1749630041434,10.16885993,166.14,166.09,10.16885993]
[1749630042443,26.0,166.18,166.08,37.67215993]
[1749630042444,10.16885993,166.13,166.08,37.67215993]
[1749630042635,10.16885993,166.13,166.08,11.67215993]
[1749630043042,1.5877,166.17,166.09,10.16885993]
[1749630043249,10.16885993,166.14,166.09,28.81850879]
[1749630043566,1.5877,166.17,166.1,28.81850879]
[1749630043567,10.16885993,166.15,166.1,28.81850879]
[1749630043932,10.16885993,166.14,166.09,28.81850879]
[1749630045151,26.0,166.18,166.1,10.16885993]
[1749630045345,10.16885993,166.15,166.1,10.16885993]
[1749630046563,10.16885993,166.14,166.09,28.81850879]
[1749630048055,10.16885993,166.15,166.1,10.16885993]
[1749630048764,10.16885993,166.14,166.09,28.81850879]
[1749630049156,10.16885993,166.13,166.09,18.64964886]
[1749630049854,26.0,166.17,166.09,18.64964886]
[1749630050065,1.5821,166.21,166.14,10.16885993]
[1749630050237,10.16885993,166.19,166.1,26.0]
[1749630050444,10.16885993,166.19,166.14,10.16885993]
[1749630050650,10.16885993,166.18,166.13,10.16885993]
[1749630051542,26.0,166.2,166.14,10.16885993]
[1749630051744,10.16885993,166.19,166.14,10.16885993]
[1749630052659,10.16885993,166.18,166.13,10.16885993]
[1749630053943,26.0,166.22,166.1,24.66981416]
[1749630054145,10.16885993,166.18,166.12,18.64964886]
[1749630054361,10.16885993,166.18,166.12,28.81850879]
[1749630054662,10.16885993,166.18,166.13,10.16885993]
[1749630055073,10.16885993,166.19,166.14,10.16885993]
[1749630056165,26.0,166.22,166.14,10.16885993]
[1749630056360,10.16885993,166.19,166.14,10.16885993]
[1749630057067,10.16885993,166.19,166.13,10.16885993]
[1749630059876,10.16885993,166.19,166.14,10.16885993]
[1749630060369,26.0,166.22,166.14,10.16885993]
[1749630060562,10.16885993,166.19,166.14,10.16885993]
[1749630060962,26.0,166.22,166.13,10.16885993]
[1749630060963,10.16885993,166.18,166.13,10.16885993]
[1749630061169,10.16885993,166.16,166.12,18.64964886]
[1749630061574,10.16885993,166.17,166.12,18.64964886]
[1749630062360,10.16885993,166.16,166.12,18.64964886]
[1749630062881,26.0,166.15,166.07,18.64964886]
[1749630063053,26.0,166.13,166.04,1.5575]
[1749630063253,10.16885993,166.05,166.01,6.0513]
[1749630063460,10.16885993,166.03,166.0,1.5575]
[1749630063671,10.16885993,166.04,166.0,1.5575]
[1749630063873,10.16885993,166.08,166.0,1.5575]
[1749630063874,26.0,166.07,166.0,1.5575]
[1749630064180,10.16885993,166.01,165.95,11.72015993]
[1749630064357,10.16885993,166.04,165.96,26.0]
[1749630064554,10.16885993,165.97,165.93,6.2947]
[1749630065061,10.16885993,165.98,165.93,6.2947]
[1749630065275,10.16885993,165.98,165.94,18.64964886]
[1749630065577,10.16885993,165.97,165.92,11.77445993]
[1749630065876,10.16885993,165.97,165.93,18.64964886]
[1749630066084,26.0,166.02,165.93,18.64964886]
[1749630066085,10.16885993,165.96,165.93,18.64964886]
[1749630066464,10.16885993,165.97,165.93,18.64964886]
[1749630067089,10.16885993,165.98,165.93,18.64964886]
[1749630067253,42.32425993,166.08,165.94,10.16885993]
[1749630067453,10.16885993,166.01,165.96,10.16885993]
[1749630067679,10.16885993,165.99,165.92,1.6056]
[1749630067858,26.0,166.04,165.92,1.6056]
[1749630067859,10.16885993,165.97,165.92,1.6056]
[1749630068060,10.16885993,165.98,165.93,10.16885993]
[1749630068365,36.16885993,166.0,165.89,18.64964886]
[1749630068563,10.16885993,165.93,165.89,18.64964886]
[1749630069103,10.16885993,165.92,165.88,1.5738]
[1749630069657,10.16885993,165.93,165.88,11.74265993]
[1749630070575,10.16885993,165.96,165.91,10.16885993]
[1749630070787,10.16885993,165.99,165.94,10.16885993]
[1749630070964,10.16885993,165.95,165.9,26.0]
[1749630071162,26.0,166.0,165.94,10.16885993]
[1749630071363,17.0215411,165.98,165.91,18.64964886]
[1749630071574,17.0215411,165.95,165.9,17.0215411]
[1749630071880,14.0208,166.03,165.88,1.5738]
[1749630071881,17.0215411,165.96,165.88,27.5738]
[1749630072079,26.0,165.97,165.9,17.0215411]
[1749630072284,17.0215411,165.95,165.9,17.0215411]
[1749630072880,26.0,165.99,165.92,17.0215411]
[1749630073085,17.0215411,165.96,165.92,17.0215411]
[1749630073483,17.0215411,165.97,165.93,17.0215411]
[1749630073660,17.0215411,165.95,165.9,17.0215411]
[1749630073864,17.0215411,165.97,165.92,17.0215411]
[1749630074177,17.0215411,165.93,165.89,18.64964886]
[1749630074366,17.0215411,165.95,165.9,17.0215411]
[1749630074568,17.0215411,165.96,165.91,17.0215411]
[1749630074877,17.0215411,165.95,165.9,17.0215411]
[1749630075084,17.0215411,165.94,165.89,17.0215411]
[1749630075469,17.0215411,165.95,165.9,17.0215411]
[1749630075665,17.0215411,165.95,165.91,17.0215411]
[1749630075982,17.0215411,165.92,165.86,18.64964886]
[1749630076178,17.0215411,165.91,165.87,17.0215411]
[1749630076371,17.0215411,165.92,165.87,17.0215411]
[1749630076907,26.0,165.97,165.88,17.0215411]
[1749630077065,17.0215411,165.92,165.84,1.5467]
[1749630077266,17.0215411,165.91,165.86,17.0215411]
[1749630077681,6.3029,165.95,165.87,17.0215411]
[1749630077997,17.0215411,165.92,165.87,17.0215411]
[1749630078365,6.3029,165.95,165.89,17.0215411]
[1749630078577,17.0215411,165.94,165.87,18.64964886]
[1749630078776,17.0215411,165.93,165.88,17.0215411]
[1749630078984,17.0215411,165.93,165.84,33.57653662]
[1749630079188,17.0215411,165.93,165.88,17.0215411]
[1749630079877,17.0215411,165.93,165.85,18.64964886]
[1749630079878,43.0215411,165.95,165.85,18.64964886]
[1749630080082,17.0215411,165.95,165.9,17.0215411]
[1749630080490,17.0215411,165.96,165.91,17.0215411]
[1749630080665,17.0215411,166.0,165.95,17.0215411]
[1749630081168,17.0215411,166.02,165.97,17.0215411]
[1749630081369,17.0215411,166.0,165.94,26.0]
[1749630081599,17.0215411,166.0,165.95,17.0215411]
[1749630081978,17.0215411,166.01,165.96,17.0215411]
[1749630082782,6.22,166.03,165.97,17.0215411]
[1749630082783,17.0215411,166.02,165.97,17.0215411]
[1749630083194,23.2415411,166.03,165.97,17.0215411]
[1749630083490,6.22,166.03,165.99,17.0215411]
[1749630083896,23.2415411,166.03,165.98,17.0215411]
[1749630084078,17.0215411,166.02,165.98,17.0215411]
[1749630084486,6.22,166.03,165.98,17.0215411]
[1749630084793,6.22,166.03,166.0,17.0215411]
[1749630085279,17.0215411,166.08,166.02,17.0215411]
[1749630085596,17.0215411,166.08,166.03,17.0215411]
[1749630085597,43.0215411,166.08,166.03,17.0215411]
[1749630085985,26.0,166.08,166.03,17.0215411]
[1749630086315,43.0215411,166.08,166.03,17.0215411]
[1749630086603,6.22,166.11,166.04,17.0215411]
[1749630086799,17.0215411,166.09,166.01,20.24274886]
[1749630087109,17.0215411,166.08,166.03,17.0215411]
[1749630087407,17.0215411,166.07,166.02,17.0215411]
[1749630089203,17.0215411,166.09,166.04,17.0215411]
[1749630089390,17.0215411,166.07,166.02,26.0]
[1749630089706,32.22,166.11,165.98,6.3916]
[1749630089707,17.0215411,166.05,166.0,17.0215411]
[1749630089883,17.0215411,166.05,166.0,35.67118996]
[1749630091300,17.0215411,166.06,166.01,17.0215411]
[1749630092004,17.0215411,166.07,166.02,17.0215411]
[1749630092208,6.22,166.11,166.04,17.0215411]
[1749630092507,17.0215411,166.1,166.05,17.0215411]
[1749630092711,17.0215411,166.09,166.04,17.0215411]
[1749630094088,17.0215411,166.08,166.03,17.0215411]
[1749630094418,17.0215411,166.08,165.97,1.6444]
[1749630094419,17.0215411,166.04,165.97,1.6444]
[1749630094723,27.5641,166.08,165.98,18.64964886]
[1749630094881,17.0215411,166.04,165.98,35.67118996]
[1749630095308,17.0215411,166.05,165.99,17.0215411]
[1749630095615,17.0215411,166.04,165.99,17.0215411]
[1749630096113,17.0215411,166.04,165.98,35.67118996]
[1749630096313,17.0215411,166.04,165.98,18.64964886]
[1749630096483,17.0215411,166.05,166.0,17.0215411]
[1749630096812,17.0215411,166.06,166.0,17.0215411]
[1749630096986,17.0215411,166.06,166.01,17.0215411]
[1749630097184,26.0,166.1,166.01,17.0215411]
[1749630097610,17.0215411,166.06,166.01,17.0215411]
[1749630097805,26.0,166.1,166.02,18.64964886]
[1749630097988,17.0215411,166.09,166.04,35.67118996]
[1749630098188,26.0,166.1,166.04,35.67118996]
[1749630098384,17.0215411,166.09,166.04,35.67118996]
[1749630100110,17.0215411,166.09,166.04,17.0215411]
[1749630101019,6.22,166.11,166.05,17.0215411]
[1749630101190,23.2415411,166.11,166.06,17.0215411]
[1749630101583,6.22,166.11,166.03,18.64964886]
[1749630101897,17.0215411,166.09,166.05,18.64964886]
[1749630102205,6.22,166.11,166.05,17.0215411]
[1749630102404,23.2415411,166.11,166.06,17.0215411]
[1749630103200,6.22,166.11,166.08,17.0215411]
[1749630103593,23.2415411,166.11,166.05,18.64964886]
[1749630103795,23.2415411,166.11,166.06,17.0215411]
[1749630106920,49.2415411,166.11,166.06,17.0215411]
[1749630108910,32.22,166.11,166.05,35.67118996]
[1749630109105,17.0215411,166.09,166.05,18.64964886]
[1749630109306,10.20136506,166.09,166.05,18.64964886]
[1749630109516,10.20136506,166.08,166.04,1.5581]
[1749630110401,10.20136506,166.08,166.0,11.85766506]
[1749630110402,10.20136506,166.05,166.0,11.85766506]
[1749630110720,10.20136506,166.05,166.01,18.64964886]
[1749630111098,26.0,166.08,166.02,10.20136506]
[1749630111425,36.20136506,166.08,166.03,18.64964886]
[1749630112019,36.20136506,166.08,166.01,18.64964886]
[1749630112020,10.20136506,166.07,166.01,18.64964886]
[1749630112214,10.20136506,166.07,166.03,18.64964886]
[1749630112928,10.20136506,166.08,166.03,10.20136506]
[1749630113117,6.22,166.11,166.05,18.64964886]
[1749630113422,10.20136506,166.1,166.05,10.20136506]
[1749630113630,10.20136506,166.1,166.02,6.02319348]
[1749630113631,10.20136506,166.08,166.04,18.64964886]
[1749630115521,10.20136506,166.09,166.04,10.20136506]
[1749630117817,10.20136506,166.1,166.06,18.64964886]
[1749630120128,6.22,166.11,166.06,18.64964886]
[1749630120334,10.20136506,166.1,166.06,18.64964886]
[1749630120838,6.22,166.11,166.06,18.64964886]
[1749630120839,6.22,166.11,166.06,10.20136506]
[1749630121012,16.42136506,166.11,166.07,18.64964886]
[1749630122009,6.01619865,166.22,166.1,10.20136506]
[1749630122010,6.06,166.19,166.1,10.20136506]
[1749630122335,6.06,166.19,166.09,20.26544886]
[1749630122336,6.06,166.19,166.15,28.85101392]
[1749630122508,6.06,166.19,166.17,18.64964886]
[1749630122827,10.20136506,166.22,166.17,18.64964886]
[1749630123048,13.7292,166.27,166.17,10.20136506]
[1749630123209,10.20136506,166.23,166.19,18.64964886]